[Event "Asian Nation Cup Women 2018"]
[Site "Hamedan"]
[Date "2018.07.28"]
[Round "1"]
[White "Wang, Jue"]
[Black "Pham, Le Thao Nguyen"]
[Result "1/2-1/2"]
[ECO "C50"]
[WhiteElo "2377"]
[BlackElo "2334"]
[Annotator "NA"]
[PlyCount "81"]
[EventDate "2018.07.27"]
[EventType "swiss"]
[EventCountry "IRI"]
[SourceTitle "playchess.com"]
[Source "ChessBase"]
[SourceQuality "1"]
[WhiteTeam "China"]
[BlackTeam "Vietnam"]
[WhiteTeamCountry "CHN"]
[BlackTeamCountry "VIE"]
[TimeControl "40/5400+30:1800+30"]

1. e4 {[%emt 0:00:00]} e5 {[%emt 0:00:20]} 2. Nf3 {[%emt 0:00:00]} Nc6 {[%emt 0:00:21]} 3. Bc4 {[%emt 0:00:14]} Bc5 {[%emt 0:00:31]} 4. O-O Nf6 {[%emt 0:00:43]} 5. d3 {[%emt 0:00:38]} O-O {[%emt 0:00:50]} 6. h3 {[%emt 0:02:43]} d6 {[%emt 0:02:42]} 7. c3 {[%emt 0:00:17]} a6 {[%emt 0:00:48]} 8. Bb3 {[%emt 0:00:40]} Ba7 {[%emt 0:02:28]} 9. Nbd2 {[%emt 0:00:13]} Ne7 {[%emt 0:03:59]} 10. Re1 {[%emt 0:00:10]} Ng6 {[%emt 0:01:26]} 11. Nf1 {[%emt 0:00:32]} Be6 {[%emt 0:14:03]} 12. Bc2 {[%emt 0:12:52]} Qc8 {[%emt 0:05:04]} 13. d4 {[%emt 0:05:36]} Nh5 14. Ne3 {[%emt 0:10:04]} Nhf4 {[%emt 0:18:51]} 15. Nf5 {[%emt 0:00:43]} Re8 {[%emt 0:01:00]} 16. g3 Nxh3+ {[%emt 0:07:19]} 17. Kg2 {[%emt 0:23:12]} d5 {[%emt 0:03:07]} 18. N3h4 {[%emt 0:19:06]} dxe4 {[%emt 0:12:34]} 19. Bxe4 {[%emt 0:00:55]} exd4 {[%emt 0:02:17]} 20. Qf3 {[%emt 0:04:39]} Qd7 {[%emt 0:07:59]} 21. Kxh3 d3 {[%emt 0:05:15]} 22. Rd1 {[%emt 0:14:46]} Ne5 {[%emt 0:06:02]} 23. Qg2 {[%emt 0:00:03]} h5 {[%emt 0:00:59]} 24. f3 g6 {[%emt 0:01:05]} 25. g4 {[%emt 0:02:29]} Kh7 {[%emt 0:00:36]} 26. Bf4 {[%emt 0:01:54]} Bd5 {[%emt 0:01:02]} 27. Bxe5 {[%emt 0:01:01]} Bxe4 {[%emt 0:00:25]} 28. Ng3 {[%emt 0:00:40]} hxg4+ {[%emt 0:00:34]} 29. Kh2 {[%emt 0:00:11]} Bxf3 {[%emt 0:01:46]} 30. Nxf3 {[%emt 0:00:16]} gxf3 {[%emt 0:00:01]} 31. Ne4 {[%emt 0:00:20]} fxg2 {[%emt 0:00:56]} 32. Nf6+ {[%emt 0:00:03]} Kh6 {[%emt 0:00:15]} 33. Nxd7 {[%emt 0:00:03]} Rad8 {[%emt 0:00:57]} 34. Rxd3 {[%emt 0:01:54]} g1=Q+ {[%emt 0:00:09]} 35. Rxg1 {[%emt 0:00:01]} Bxg1+ {[%emt 0:00:02]} 36. Kxg1 {[%emt 0:00:02]} Rxd7 {[%emt 0:00:36]} 37. Bf4+ {[%emt 0:00:01]} g5 {[%emt 0:00:07]} 38. Bxg5+ {[%emt 0:00:01]} Kxg5 {[%emt 0:00:12]} 39. Rxd7 {[%emt 0:00:01]} f5 {[%emt 0:00:22]} 40. Rxc7 {[%emt 0:00:29]} b5 {[%emt 0:30:34]} 41. Kf2 {[%emt 0:32:12]} 1/2-1/2

[Event "Asian Nation Cup Women 2018"]
[Site "Hamedan"]
[Date "2018.07.28"]
[Round "1"]
[White "Hoang, Thi Bao Tram"]
[Black "Lei, Tingjie"]
[Result "0-1"]
[ECO "E53"]
[WhiteElo "2364"]
[BlackElo "2473"]
[Annotator "ChessBase"]
[PlyCount "120"]
[EventDate "2018.07.27"]
[EventType "swiss"]
[EventCountry "IRI"]
[SourceTitle "playchess.com"]
[Source "ChessBase"]
[SourceQuality "1"]
[WhiteTeam "Vietnam"]
[BlackTeam "China"]
[WhiteTeamCountry "VIE"]
[BlackTeamCountry "CHN"]
[TimeControl "40/5400+30:1800+30"]

1. d4 {[%emt 0:00:00]} Nf6 {[%emt 0:00:24]} 2. c4 {[%emt 0:00:22]} e6 3. Nc3 {[%emt 0:00:52]} Bb4 {[%emt 0:01:10]} 4. e3 {[%emt 0:02:14]} O-O {[%emt 0:00:27]} 5. Bd3 {[%emt 0:01:58]} d5 {[%emt 0:01:10]} 6. Nf3 {[%emt 0:00:53]} c5 {[%emt 0:00:45]} 7. O-O {[%emt 0:00:24]} cxd4 {[%emt 0:02:29]} 8. exd4 {[%emt 0:00:15]} dxc4 {[%emt 0:00:17]} 9. Bxc4 {[%emt 0:00:07]} b6 {[%emt 0:01:23]} 10. Bg5 {[%emt 0:00:49]} Bb7 {[%emt 0:03:28]} 11. Qd3 {[%emt 0:01:08]} Nbd7 {[%emt 0:03:48]} 12. a3 {[%emt 0:03:32]} Bxc3 {[%emt 0:04:33]} 13. bxc3 {[%emt 0:00:34]} Qc7 {[%emt 0:00:20]} 14. Ba2 {[%emt 0:05:15]} Be4 {[%emt 0:12:02]} 15. Qe3 {[%emt 0:02:01]} Bd5 {[%emt 0:00:15]} 16. Bb1 {[%emt 0:16:39]} Rac8 {[%emt 0:00:56]} 17. Rc1 Rfe8 {[%emt 0:06:17]} 18. Ne5 {[%emt 0:21:17]} Nxe5 {[%emt 0:02:40]} 19. dxe5 {[%emt 0:00:21]} Nd7 {[%emt 0:00:12]} 20. Bf4 {[%emt 0:01:41]} Qc6 {[%emt 0:06:50]} 21. Qg3 Be4 {[%emt 0:10:02]} 22. h4 {[%emt 0:04:35]} Kh8 {[%emt 0:07:59]} 23. Rd1 {[%emt 0:08:23]} Nc5 {[%emt 0:03:27]} 24. c4 {[%emt 0:08:11]} Bxb1 {[%emt 0:09:35]} 25. Raxb1 {[%emt 0:00:31]} Qe4 {[%emt 0:00:04]} 26. h5 {[%emt 0:02:13]} h6 {[%emt 0:00:31]} 27. Qe3 Qxe3 {[%emt 0:09:41]} 28. Bxe3 {[%emt 0:02:39]} Re7 {[%emt 0:00:09]} 29. Rbc1 {[%emt 0:07:10]} Rec7 {[%emt 0:06:14]} 30. Bxc5 {[%emt 0:03:11]} Rxc5 {[%emt 0:00:02]} 31. Rd7 {[%emt 0:00:16]} Kg8 {[%emt 0:02:16]} 32. Rxa7 {[%emt 0:00:52]} Rxe5 {[%emt 0:00:03]} 33. g4 {[%emt 0:07:00]} Rg5 {[%emt 0:05:22]} 34. f3 {[%emt 0:00:29]} f5 {[%emt 0:01:38]} 35. Rd1 {[%emt 0:00:44]} e5 {[%emt 0:00:26]} 36. Kf2 {[%emt 0:00:48]} fxg4 {[%emt 0:00:06]} 37. fxg4 {[%emt 0:00:14]} Rxg4 {[%emt 0:00:07]} 38. Rd6 {[%emt 0:00:41]} Rgxc4 {[%emt 0:01:31]} 39. Rxb6 {[%emt 0:00:14]} Rf8+ {[%emt 0:00:00]} 40. Ke2 {[%emt 0:00:30]} Rc2+ {[%emt 0:06:12]} 41. Ke3 {[%emt 0:30:30]} Rh2 {[%emt 0:00:30]} 42. Rbb7 {[%emt 0:00:30]} Rf4 {[%emt 0:00:30]} 43. Kd3 {[%emt 0:00:00]} Rg4 44. Re7 {[%emt 0:00:00]} Rxh5 {[%emt 0:01:52]} 45. Ke2 {[%emt 0:00:00]} e4 {[%emt 0:07:34]} 46. a4 {[%emt 0:00:00]} Rh3 {[%emt 0:03:22]} 47. a5 {[%emt 0:00:00]} Ra3 {[%emt 0:03:48]} 48. a6 {[%emt 0:00:00]} Rg6 {[%emt 0:03:07]} 49. Kf2 {[%emt 0:00:00]} Kh7 {[%emt 0:01:11]} 50. Ke2 {[%emt 0:00:00]} h5 {[%emt 0:01:35]} 51. Re5 {[%emt 0:01:05]} Rg2+ {[%emt 0:04:08]} 52. Kf1 {[%emt 0:00:43]} Rh2 {[%emt 0:00:02]} 53. Kg1 {[%emt 0:01:32]} Rb2 {[%emt 0:00:03]} 54. Rf7 {[%emt 0:00:14]} Rxa6 {[%emt 0:00:34]} 55. Rf1 {[%emt 0:00:55]} Kh6 {[%emt 0:01:31]} 56. Rxe4 {[%emt 0:00:14]} Raa2 {[%emt 0:00:13]} 57. Rd1 {[%emt 0:00:34]} Rg2+ {[%emt 0:00:04]} 58. Kh1 {[%emt 0:00:35]} Rh2+ {[%emt 0:00:26]} 59. Kg1 {[%emt 0:00:06]} Rag2+ {[%emt 0:00:04]} 60. Kf1 {[%emt 0:00:05]} Rh1+ {[%emt 0:00:06]} 0-1

[Event "Asian Nation Cup Women 2018"]
[Site "Hamedan"]
[Date "2018.07.28"]
[Round "1"]
[White "Nakhbayeva, Guliskhan"]
[Black "Yaghy, Ritta"]
[Result "1-0"]
[ECO "B19"]
[WhiteElo "2352"]
[BlackElo "1753"]
[Annotator "NA"]
[PlyCount "107"]
[EventDate "2018.07.27"]
[EventType "swiss"]
[EventCountry "IRI"]
[SourceTitle "playchess.com"]
[Source "ChessBase"]
[SourceQuality "1"]
[WhiteTeam "KAZ"]
[BlackTeam "SYR"]
[WhiteTeamCountry "KAZ"]
[TimeControl "40/5400+30:1800+30"]

1. e4 {[%emt 1:15:12]} c6 {[%emt 1:16:02]} 2. d4 {[%emt 0:00:22]} d5 {[%emt 0:00:21]} 3. Nc3 {[%emt 0:00:24]} dxe4 4. Nxe4 {[%emt 0:00:21]} Bf5 {[%emt 0:00:42]} 5. Ng3 {[%emt 0:00:22]} Bg6 {[%emt 0:00:21]} 6. h4 {[%emt 0:00:21]} h6 {[%emt 0:00:20]} 7. Nf3 {[%emt 0:00:23]} Nd7 {[%emt 0:00:21]} 8. h5 {[%emt 0:00:25]} Bh7 {[%emt 0:00:21]} 9. Bd3 {[%emt 0:00:21]} Bxd3 {[%emt 0:00:21]} 10. Qxd3 {[%emt 0:00:22]} e6 {[%emt 0:00:21]} 11. Bd2 {[%emt 0:00:29]} Ngf6 {[%emt 0:00:23]} 12. O-O-O {[%emt 0:00:29]} Qc7 {[%emt 0:00:21]} 13. Ne4 {[%emt 0:00:29]} Nxe4 {[%emt 0:00:22]} 14. Qxe4 {[%emt 0:00:22]} Nf6 {[%emt 0:00:21]} 15. Qe2 {[%emt 0:00:28]} a6 {[%emt 0:01:09]} 16. Ne5 {[%emt 0:01:39]} Rd8 {[%emt 0:01:20]} 17. Bf4 {[%emt 0:01:38]} Bd6 {[%emt 0:01:53]} 18. Kb1 {[%emt 0:03:26]} Nd5 {[%emt 0:03:53]} 19. Bd2 {[%emt 0:00:24]} b5 {[%emt 0:01:24]} 20. f4 {[%emt 0:02:53]} c5 {[%emt 0:05:03]} 21. dxc5 {[%emt 0:00:23]} Qxc5 {[%emt 0:01:10]} 22. f5 {[%emt 0:03:04]} Nc7 {[%emt 0:04:02]} 23. Bc3 {[%emt 0:01:25]} O-O {[%emt 0:00:56]} 24. Bd4 {[%emt 0:01:38]} Qd5 {[%emt 0:00:43]} 25. f6 {[%emt 0:00:42]} Bxe5 {[%emt 0:00:39]} 26. Bxe5 {[%emt 0:00:29]} Qc5 {[%emt 0:00:29]} 27. Qg4 {[%emt 0:01:33]} Rxd1+ {[%emt 0:00:28]} 28. Rxd1 {[%emt 0:00:22]} Ne8 {[%emt 0:00:21]} 29. fxg7 {[%emt 0:00:27]} Qxe5 {[%emt 0:00:31]} 30. gxf8=Q+ {[%emt 0:00:33]} Kxf8 {[%emt 0:00:21]} 31. a4 {[%emt 0:00:32]} Nd6 {[%emt 0:00:42]} 32. Qb4 {[%emt 0:01:11]} Ke7 {[%emt 0:00:30]} 33. axb5 {[%emt 0:00:25]} axb5 {[%emt 0:00:22]} 34. g4 {[%emt 0:01:14]} f6 {[%emt 0:00:34]} 35. Qa3 {[%emt 0:00:41]} f5 {[%emt 0:00:42]} 36. gxf5 {[%emt 0:02:09]} exf5 {[%emt 0:00:21]} 37. Qa7+ {[%emt 0:00:27]} Ke6 {[%emt 0:00:37]} 38. b3 {[%emt 0:00:28]} Ne4 {[%emt 0:00:31]} 39. Qd7+ {[%emt 0:00:40]} Kf6 {[%emt 0:00:21]} 40. Qd8+ {[%emt 0:00:21]} Ke6 {[%emt 0:30:31]} 41. Qe8+ {[%emt 0:30:22]} Kf6 {[%emt 0:00:25]} 42. Qh8+ {[%emt 0:00:28]} Ke6 {[%emt 0:00:22]} 43. Qxh6+ {[%emt 0:00:27]} Ke7 {[%emt 0:00:45]} 44. Qh7+ {[%emt 0:00:21]} Kf6 {[%emt 0:00:31]} 45. Qh8+ {[%emt 0:00:23]} Ke6 {[%emt 0:00:21]} 46. Qe8+ {[%emt 0:00:23]} Kf6 {[%emt 0:00:22]} 47. Qh8+ {[%emt 0:00:44]} Ke6 {[%emt 0:00:21]} 48. Qe8+ {[%emt 0:00:30]} Kf6 {[%emt 0:00:21]} 49. Qxe5+ Kxe5 50. Rh1 {[%emt 0:01:17]} Ng5 {[%emt 0:01:14]} 51. h6 {[%emt 0:00:21]} Nh7 {[%emt 0:00:22]} 52. Rg1 {[%emt 0:00:28]} f4 {[%emt 0:00:55]} 53. Rg7 {[%emt 0:00:25]} Nf6 {[%emt 0:00:21]} 54. h7 {[%emt 0:00:22]} 1-0

[Event "Asian Nation Cup Women 2018"]
[Site "Hamedan"]
[Date "2018.07.28"]
[Round "1"]
[White "Zhai, Mo"]
[Black "Nguyen, Thi Mai Hung"]
[Result "1/2-1/2"]
[ECO "D70"]
[WhiteElo "2350"]
[BlackElo "2226"]
[Annotator "NA"]
[PlyCount "127"]
[EventDate "2018.07.27"]
[EventType "swiss"]
[EventCountry "IRI"]
[SourceTitle "playchess.com"]
[Source "ChessBase"]
[SourceQuality "1"]
[WhiteTeam "CHN"]
[BlackTeam "VIE"]
[TimeControl "40/5400+30:1800+30"]

1. d4 {[%emt 0:00:00]} Nf6 {[%emt 0:00:08]} 2. c4 {[%emt 0:00:00]} g6 {[%emt 0:00:09]} 3. Nf3 {[%emt 0:00:54]} Bg7 4. Bf4 {[%emt 0:01:39]} O-O {[%emt 0:03:35]} 5. e3 $11 {[%emt 0:01:14] LiveBook: 29 Games} d5 {[%emt 0:03:59]} 6. Nbd2 {[%emt 0:05:05]} c5 {[%emt 0:02:45]} 7. cxd5 {[%emt 0:10:30]} Nxd5 {[%emt 0:03:01]} 8. Be5 {[%emt 0:00:23]} Bxe5 {[%emt 0:05:06]} 9. dxe5 {[%emt 0:00:49]} Nc6 {[%emt 0:00:20]} 10. Bb5 {[%emt 0:01:48]} Ndb4 {[%emt 0:05:54]} 11. O-O {[%emt 0:02:27]} a6 {[%emt 0:02:40]} 12. Bxc6 {[%emt 0:03:39]} Nxc6 {[%emt 0:00:11]} 13. Qc2 {[%emt 0:00:30]} b6 {[%emt 0:02:05]} 14. Qe4 {[%emt 0:06:32]} Qc7 15. Rac1 Bb7 {[%emt 0:15:06]} 16. Qf4 {[%emt 0:17:26]} Kg7 {[%emt 0:03:35]} 17. a3 {[%emt 0:01:44]} Rad8 {[%emt 0:04:04]} 18. Ne4 Qc8 {[%emt 0:10:40]} 19. Rc3 {[%emt 0:09:25]} h6 {[%emt 0:07:06]} 20. Rb3 {[%emt 0:16:06]} Na5 {[%emt 0:07:22]} 21. Rc3 {[%emt 0:00:07]} Qe6 {[%emt 0:02:17]} 22. Ned2 {[%emt 0:03:53]} Nc6 {[%emt 0:03:41]} 23. h4 Rd7 {[%emt 0:06:59]} 24. h5 {[%emt 0:07:49]} gxh5 {[%emt 0:03:14]} 25. Ne4 {[%emt 0:02:59]} Rd5 {[%emt 0:04:05]} 26. Ng3 {[%emt 0:03:51]} Nxe5 {[%emt 0:00:55]} 27. Nf5+ {[%emt 0:00:18]} Kh7 28. N3h4 {[%emt 0:01:22]} Rg8 {[%emt 0:03:26]} 29. e4 {[%emt 0:01:26]} Rd7 {[%emt 0:00:23]} 30. Nxh6 {[%emt 0:01:05]} Qxh6 {[%emt 0:00:58]} 31. Qf5+ {[%emt 0:00:57]} Kh8 {[%emt 0:01:32]} 32. Qxe5+ {[%emt 0:00:09]} f6 {[%emt 0:00:07]} 33. Qe6 {[%emt 0:01:03]} Bc8 {[%emt 0:00:43]} 34. Nf5 {[%emt 0:00:56]} Qh7 {[%emt 0:00:14]} 35. Qxb6 {[%emt 0:00:17]} Rb7 {[%emt 0:00:43]} 36. Qxc5 {[%emt 0:00:40]} Bxf5 {[%emt 0:00:19]} 37. exf5 {[%emt 0:00:39]} Rb5 {[%emt 0:00:43]} 38. Qc7 {[%emt 0:00:39]} Rxf5 {[%emt 0:00:16]} 39. Rg3 {[%emt 0:00:23]} Rxg3 {[%emt 0:00:00]} 40. Qxg3 {[%emt 0:00:30]} Rg5 {[%emt 0:09:13]} 41. Qh3 {[%emt 0:30:30]} a5 {[%emt 0:00:30]} 42. Rc1 {[%emt 0:00:30]} Qf5 {[%emt 0:00:30]} 43. Qf3 {[%emt 0:00:00]} Qd5 {[%emt 0:04:50]} 44. Qxd5 {[%emt 0:00:00]} Kh7 45. Rc8 {[%emt 0:00:00]} Rxd5 {[%emt 0:00:18]} 46. Rc7 {[%emt 0:00:00]} Rd1+ {[%emt 0:03:27]} 47. Kh2 {[%emt 0:00:00]} Rd2 {[%emt 0:01:43]} 48. Rxe7+ {[%emt 0:00:00]} Kg6 {[%emt 0:00:06]} 49. Rb7 {[%emt 0:00:00]} Rxf2 {[%emt 0:00:28]} 50. b3 {[%emt 0:00:00]} Rc2 {[%emt 0:03:02]} 51. a4 {[%emt 0:00:00]} Rc3 {[%emt 0:03:28]} 52. Rb5 {[%emt 0:00:00]} h4 {[%emt 0:00:37]} 53. Kh1 {[%emt 0:01:03]} f5 {[%emt 0:00:16]} 54. Kh2 {[%emt 0:00:26]} Kg5 {[%emt 0:00:12]} 55. Rxa5 {[%emt 0:00:42]} Rxb3 {[%emt 0:00:04]} 56. Ra8 {[%emt 0:00:09]} Ra3 {[%emt 0:00:17]} 57. a5 {[%emt 0:00:11]} Kf4 {[%emt 0:04:40]} 58. a6 {[%emt 0:00:29]} h3 {[%emt 0:02:34]} 59. gxh3 {[%emt 0:01:11]} Kf3 {[%emt 0:00:07]} 60. a7 {[%emt 0:00:30]} Ra2+ {[%emt 0:00:09]} 61. Kg1 {[%emt 0:00:08]} Ra1+ {[%emt 0:00:16]} 62. Kh2 {[%emt 0:00:05]} Ra2+ {[%emt 0:00:16]} 63. Kg1 {[%emt 0:00:03]} Ra1+ {[%emt 0:00:15]} 64. Kh2 {[%emt 0:00:03]} 1/2-1/2

[Event "Asian Nation Cup Women 2018"]
[Site "Hamedan"]
[Date "2018.07.28"]
[Round "1"]
[White "Nguyen, Thi Thanh An"]
[Black "Guo, Qi"]
[Result "1/2-1/2"]
[ECO "D31"]
[WhiteElo "2257"]
[BlackElo "2361"]
[Annotator "NA"]
[PlyCount "55"]
[EventDate "2018.07.27"]
[EventType "swiss"]
[EventCountry "IRI"]
[SourceTitle "playchess.com"]
[Source "ChessBase"]
[SourceQuality "1"]
[WhiteTeam "Vietnam"]
[BlackTeam "China"]
[WhiteTeamCountry "VIE"]
[BlackTeamCountry "CHN"]
[TimeControl "40/5400+30:1800+30"]

1. d4 {[%emt 0:00:00]} d5 {[%emt 0:00:00]} 2. c4 {[%emt 0:00:52]} e6 {[%emt 0:00:19]} 3. Nc3 {[%emt 0:00:16]} Bb4 {[%emt 0:00:39]} 4. cxd5 {[%emt 0:00:09]} exd5 {[%emt 0:00:08]} 5. Bf4 {[%emt 0:03:26]} c6 {[%emt 0:00:29]} 6. e3 {[%emt 0:01:40]} Bf5 {[%emt 0:00:34]} 7. Bd3 {[%emt 0:02:50]} Bxd3 {[%emt 0:00:16]} 8. Qxd3 {[%emt 0:01:13]} Bd6 {[%emt 0:02:32]} 9. Bxd6 {[%emt 0:00:07]} Qxd6 {[%emt 0:00:09]} 10. Nf3 {[%emt 0:00:23]} Nf6 {[%emt 0:00:10]} 11. O-O {[%emt 0:00:04]} O-O {[%emt 0:00:06]} 12. Rab1 {[%emt 0:00:51]} a5 {[%emt 0:04:13]} 13. Qf5 {[%emt 0:15:32]} Qe7 {[%emt 0:04:16]} 14. Rfc1 {[%emt 0:00:43]} Nbd7 {[%emt 0:02:46]} 15. Ng5 {[%emt 0:03:31]} Ne8 {[%emt 0:12:42]} 16. a3 {[%emt 0:00:30]} Ndf6 {[%emt 0:00:30]} 17. Na4 {[%emt 0:00:30]} Nd6 {[%emt 0:00:31]} 18. Qe5 {[%emt 0:06:49]} Qd8 {[%emt 0:08:27]} 19. Nc5 {[%emt 0:00:30]} Nc4 {[%emt 0:05:05]} 20. Qf5 {[%emt 0:10:38]} Qe7 {[%emt 0:16:55]} 21. Rxc4 {[%emt 0:10:57]} dxc4 {[%emt 0:00:07]} 22. Nce4 {[%emt 0:02:44]} Rfd8 {[%emt 0:01:21]} 23. Nxf6+ {[%emt 0:00:05]} Qxf6 {[%emt 0:00:05]} 24. Qxh7+ {[%emt 0:00:03]} Kf8 {[%emt 0:07:33]} 25. Qh5 Kg8 {[%emt 0:00:00]} 26. Qh7+ {[%emt 0:05:38]} Kf8 {[%emt 0:00:00]} 27. Qh5 Kg8 {[%emt 0:01:42]} 28. Qh7+ {[%emt 0:00:12]} 1/2-1/2

[Event "Asian Nation Cup Women 2018"]
[Site "Hamedan"]
[Date "2018.07.29"]
[Round "2"]
[White "Lei, Tingjie"]
[Black "Harika, Dronavalli"]
[Result "1/2-1/2"]
[ECO "D31"]
[WhiteElo "2473"]
[BlackElo "2494"]
[Annotator "RC"]
[PlyCount "31"]
[EventDate "2018.07.27"]
[EventType "swiss"]
[EventCountry "IRI"]
[SourceTitle "playchess.com"]
[Source "ChessBase"]
[SourceQuality "1"]
[WhiteTeam "China"]
[BlackTeam "India"]
[WhiteTeamCountry "CHN"]
[BlackTeamCountry "IND"]
[TimeControl "40/5400+30:1800+30"]

1. d4 d5 2. c4 e6 3. Nc3 a6 4. e3 {[%emt 0:04:45]} Nf6 {[%emt 0:01:21]} 5. Nf3 {[%emt 0:00:04]} b6 {[%emt 0:01:53]} 6. b3 {[%emt 0:06:16]} Bb7 {[%emt 0:03:45]} 7. Bb2 {[%emt 0:01:40]} Bd6 {[%emt 0:00:29]} 8. Bd3 {[%emt 0:06:43]} O-O {[%emt 0:03:36]} 9. Qe2 {[%emt 0:06:20]} Nbd7 {[%emt 0:02:07]} 10. O-O {[%emt 0:00:27]} Ne4 {[%emt 0:05:01]} 11. Rfd1 {[%emt 0:10:42]} Qe7 {[%emt 0:05:19]} 12. Rac1 {[%emt 0:03:40]} f5 {[%emt 0:04:42]} 13. Bb1 {[%emt 0:08:10]} Rac8 {[%emt 0:07:11]} 14. Bd3 {[%emt 0:05:27]} Ra8 {[%emt 0:00:09]} 15. Bb1 {[%emt 0:00:45]} Rac8 {[%emt 0:00:10]} 16. Bd3 {[%emt 0:00:40]} 1/2-1/2

[Event "Asian Nation Cup Women 2018"]
[Site "Hamedan"]
[Date "2018.07.29"]
[Round "2"]
[White "Guo, Qi"]
[Black "Padmini, Rout"]
[Result "1-0"]
[ECO "D85"]
[WhiteElo "2361"]
[BlackElo "2338"]
[Annotator "NA"]
[PlyCount "83"]
[EventDate "2018.07.27"]
[EventType "swiss"]
[EventCountry "IRI"]
[SourceTitle "playchess.com"]
[Source "ChessBase"]
[SourceQuality "1"]
[WhiteTeam "China"]
[BlackTeam "India"]
[WhiteTeamCountry "CHN"]
[BlackTeamCountry "IND"]
[TimeControl "40/5400+30:1800+30"]

1. d4 {[%emt 0:00:00]} Nf6 {[%emt 0:00:03]} 2. Nf3 {[%emt 0:00:00]} g6 {[%emt 0:00:30]} 3. c4 {[%emt 0:00:00]} Bg7 {[%emt 0:00:30]} 4. Nc3 {[%emt 0:00:14]} d5 {[%emt 0:00:30]} 5. cxd5 {[%emt 0:00:30]} Nxd5 {[%emt 0:00:30]} 6. e4 {[%emt 0:00:30]} Nxc3 {[%emt 0:00:30]} 7. bxc3 {[%emt 0:00:30]} O-O {[%emt 0:00:30]} 8. Be2 {[%emt 0:00:30]} c5 {[%emt 0:02:30]} 9. O-O {[%emt 0:09:38]} b6 10. Be3 {[%emt 0:00:00]} Bb7 {[%emt 0:06:57]} 11. Qd3 {[%emt 0:10:06]} cxd4 {[%emt 0:18:20]} 12. cxd4 {[%emt 0:00:12]} Nc6 {[%emt 0:00:16]} 13. Rac1 {[%emt 0:07:09]} e6 {[%emt 0:02:54]} 14. Rfd1 {[%emt 0:01:10]} Qd6 {[%emt 0:00:53]} 15. Qb1 {[%emt 0:03:19]} Rac8 {[%emt 0:03:09]} 16. h3 {[%emt 0:18:11]} h6 {[%emt 0:09:17]} 17. Bb5 {[%emt 0:01:46]} Kh7 18. h4 {[%emt 0:06:51]} Kh8 {[%emt 0:12:55]} 19. d5 exd5 {[%emt 0:03:10]} 20. exd5 {[%emt 0:04:11]} Ne7 {[%emt 0:02:17]} 21. Bc6 {[%emt 0:00:28]} Bxc6 {[%emt 0:02:32]} 22. dxc6 {[%emt 0:07:38]} Qe6 {[%emt 0:10:44]} 23. Re1 {[%emt 0:06:09]} Qd6 {[%emt 0:00:42]} 24. Red1 {[%emt 0:00:40]} Qe6 25. Nd4 {[%emt 0:00:40]} Qf6 {[%emt 0:07:44]} 26. Qb5 Rfd8 {[%emt 0:07:36]} 27. c7 {[%emt 0:02:47]} Rd5 {[%emt 0:06:37]} 28. Qb3 {[%emt 0:03:05]} Qxh4 {[%emt 0:00:39]} 29. Nf3 {[%emt 0:01:23]} Qe4 {[%emt 0:01:32]} 30. Re1 Qd3 {[%emt 0:01:04]} 31. Qa4 {[%emt 0:05:08]} Qb5 32. Qxa7 {[%emt 0:00:42]} Qd7 {[%emt 0:01:01]} 33. Qb7 {[%emt 0:02:20]} Nf5 {[%emt 0:00:27]} 34. Bxb6 {[%emt 0:00:25]} Kh7 35. Qc6 {[%emt 0:04:52]} g5 {[%emt 0:00:53]} 36. Qxd7 {[%emt 0:01:18]} Rxd7 37. Red1 {[%emt 0:00:07]} Rxd1+ {[%emt 0:00:39]} 38. Rxd1 g4 39. Rd8 {[%emt 0:01:19]} Ne7 {[%emt 0:00:24]} 40. Nd2 Be5 {[%emt 0:30:31]} 41. Rd7 {[%emt 0:30:24]} Ng6 {[%emt 0:00:30]} 42. Nc4 1-0

[Event "Asian Nation Cup Women 2018"]
[Site "Hamedan"]
[Date "2018.07.29"]
[Round "2"]
[White "Aakanksha Hagawane"]
[Black "Zhai, Mo"]
[Result "1/2-1/2"]
[ECO "B13"]
[WhiteElo "2314"]
[BlackElo "2350"]
[Annotator "NA"]
[PlyCount "100"]
[EventDate "2018.07.27"]
[EventType "swiss"]
[EventCountry "IRI"]
[SourceTitle "playchess.com"]
[Source "ChessBase"]
[SourceQuality "1"]
[WhiteTeam "India"]
[BlackTeam "China"]
[WhiteTeamCountry "IND"]
[BlackTeamCountry "CHN"]
[TimeControl "40/5400+30:1800+30"]

1. e4 {[%emt 0:00:00]} c6 {[%emt 0:00:43]} 2. d4 {[%emt 0:00:10]} d5 {[%emt 0:00:30]} 3. exd5 {[%emt 0:00:30]} cxd5 {[%emt 0:00:30]} 4. Bd3 {[%emt 0:00:30]} Nc6 5. c3 Nf6 {[%emt 0:01:00]} 6. Nf3 {[%emt 0:00:34]} Bg4 {[%emt 0:05:21]} 7. O-O {[%emt 0:03:06]} Bxf3 {[%emt 0:03:58]} 8. Qxf3 {[%emt 0:00:09]} g6 {[%emt 0:00:12]} 9. Bg5 {[%emt 0:04:19]} Bg7 {[%emt 0:00:18]} 10. Nd2 {[%emt 0:00:18]} O-O {[%emt 0:00:34]} 11. Rfe1 {[%emt 0:03:28]} Rc8 {[%emt 0:05:50]} 12. Qh3 {[%emt 0:04:45]} Re8 {[%emt 0:00:59]} 13. Nf3 {[%emt 0:01:20]} a6 {[%emt 0:05:26]} 14. Bh6 {[%emt 0:06:29]} Qd7 {[%emt 0:03:53]} 15. Qh4 {[%emt 0:04:18]} Qg4 {[%emt 0:00:30]} 16. Qxg4 {[%emt 0:01:29]} Nxg4 {[%emt 0:00:02]} 17. Bxg7 {[%emt 0:02:23]} Kxg7 {[%emt 0:00:02]} 18. h3 {[%emt 0:00:42]} Nf6 {[%emt 0:00:02]} 19. Ne5 {[%emt 0:00:31]} e6 {[%emt 0:05:00]} 20. f4 {[%emt 0:02:19]} Rc7 {[%emt 0:07:02]} 21. Re3 {[%emt 0:07:35]} Nxe5 {[%emt 0:03:59]} 22. fxe5 {[%emt 0:02:33]} Nd7 {[%emt 0:02:27]} 23. Rf1 {[%emt 0:04:08]} Nb6 {[%emt 0:01:56]} 24. g4 {[%emt 0:11:31]} Na4 {[%emt 0:10:40]} 25. Rf2 {[%emt 0:02:09]} b5 {[%emt 0:00:24]} 26. a3 {[%emt 0:04:32]} Rb8 {[%emt 0:01:41]} 27. Rc2 {[%emt 0:01:25]} Rbb7 {[%emt 0:19:06]} 28. Bf1 {[%emt 0:04:08]} Nb6 {[%emt 0:05:15]} 29. b3 {[%emt 0:04:59]} Rb8 {[%emt 0:05:21]} 30. Rf2 {[%emt 0:05:30]} Nc8 {[%emt 0:02:37]} 31. h4 {[%emt 0:03:50]} h6 {[%emt 0:01:15]} 32. Kh2 {[%emt 0:01:41]} Ne7 {[%emt 0:02:02]} 33. Ref3 {[%emt 0:04:10]} Nc6 {[%emt 0:00:37]} 34. Be2 {[%emt 0:01:51]} Rbc8 {[%emt 0:01:44]} 35. Rf1 {[%emt 0:04:41]} Nd8 {[%emt 0:00:45]} 36. Rc1 {[%emt 0:00:13]} Nc6 {[%emt 0:00:05]} 37. Rcf1 {[%emt 0:00:08]} Na5 {[%emt 0:01:52]} 38. Bd1 {[%emt 0:00:06]} Kg8 {[%emt 0:00:47]} 39. h5 {[%emt 0:02:45]} g5 {[%emt 0:00:22]} 40. R1f2 {[%emt 0:01:13]} Rxc3 {[%emt 0:32:01]} 41. Rxf7 {[%emt 0:30:12]} Rd3 {[%emt 0:00:12]} 42. Bc2 {[%emt 0:01:33]} Rxd4 {[%emt 0:00:58]} 43. R7f6 {[%emt 0:00:57]} Rf4 {[%emt 0:00:25]} 44. R2xf4 {[%emt 0:00:00]} gxf4 {[%emt 0:00:00]} 45. Bg6 {[%emt 0:00:00]} Nc6 {[%emt 0:00:00]} 46. Rxe6 {[%emt 0:00:00]} Nd4 {[%emt 0:00:00]} 47. Re7 {[%emt 0:00:00]} Nc6 {[%emt 0:00:00]} 48. Re6 {[%emt 0:00:00]} Nd4 {[%emt 0:00:00]} 49. Re7 {[%emt 0:00:00]} Nc6 {[%emt 0:00:00]} 50. Re6 {[%emt 0:00:00]} Nd4 {[%emt 0:00:00]} 1/2-1/2